bitfinex-derivatives/quotes_SOLF0:USTF0_20251211
["timestamp","ask_amount","ask_price","bid_price","bid_amount"]
[1765424264395,107.5825,130.11,130.01,3.15]
[1765424264602,113.1397053,130.09,130.01,3.15]
[1765424264897,6.9193,130.05,130.01,3.15]
[1765424265286,0.05440706,130.04,130.02,3.2057663]
[1765424266500,6.97430706,130.04,130.02,0.0557663]
[1765424266801,6.97430706,130.04,129.9,18.56824247]
[1765424266802,107.6572,130.02,129.91,3.15]
[1765424267004,107.6572,130.02,129.95,3.15]
[1765424267690,0.050117,130.0,129.97,0.0541219]
[1765424268199,0.050117,130.0,129.97,3.2041219]
[1765424268493,6.9228,129.99,129.97,0.0541219]
[1765424268798,114.6042,129.99,129.97,0.0541219]
[1765424269791,107.7016,129.97,129.9,3.15]
[1765424269990,113.2425053,129.97,129.9,3.15]
[1765424270795,0.05696529,129.95,129.92,0.05255046]
[1765424271296,107.77206529,129.95,129.92,0.05255046]
[1765424271495,5.5409053,129.94,129.92,0.05255046]
[1765424271687,107.77206529,129.95,129.92,0.05255046]
[1765424272498,6.98156529,129.95,129.92,0.05255046]
[1765424272801,113.2683053,129.94,129.92,0.05255046]
[1765424273697,113.2683053,129.94,129.83,3.15]
[1765424273698,107.7524,129.91,129.83,3.15]
[1765424274005,107.7683,129.89,129.83,3.15]
[1765424274195,107.7683,129.89,129.81,3.15]
[1765424274196,114.7009,129.88,129.81,3.15]
[1765424274397,107.7831,129.87,129.81,3.15]
[1765424274697,0.05463424,129.85,129.83,0.05106812]
[1765424275509,107.85493424,129.85,129.83,0.05106812]
[1765424275998,114.78523424,129.85,129.83,0.05106812]
[1765424276892,0.05463424,129.85,129.83,3.20106812]
[1765424277604,114.6807,129.91,129.83,4.74106812]
[1765424277907,6.927,129.91,129.83,3.15]
[1765424278295,114.6755,129.91,129.83,3.15]
[1765424278903,0.05077701,129.88,129.86,3.2065039]
[1765424280700,0.05077701,129.88,129.86,0.0565039]
[1765424281096,107.82597701,129.88,129.86,0.0565039]
[1765424281297,114.7288,129.85,129.8,3.15]
[1765424281697,114.7288,129.85,129.75,3.15]
[1765424281698,107.8227,129.82,129.75,3.15]
[1765424281911,6.9323,129.81,129.75,3.15]
[1765424282114,114.7632,129.81,129.75,3.15]
[1765424282409,0.05413892,129.79,129.77,3.20330468]
[1765424283308,120.2694053,129.85,129.77,3.20330468]
[1765424283512,120.2694053,129.85,129.77,3.15]
[1765424283513,6.9299,129.85,129.77,3.15]
[1765424284403,0.05679184,129.82,129.8,3.48993875]
[1765424285510,0.05679184,129.82,129.8,0.04993875]
[1765424285710,0.05679184,129.82,129.8,3.48993875]
[1765424285913,5.5409053,129.88,129.8,3.48993875]
[1765424286118,5.5409053,129.88,129.8,3.44]
[1765424286409,6.9289,129.87,129.8,3.44]
[1765424286607,107.7622,129.9,129.8,3.44]
[1765424286805,6.9277,129.89,129.81,3.44]
[1765424287006,0.04952662,129.86,129.84,0.05828609]
[1765424287513,0.04952662,129.86,129.84,3.49828609]
[1765424292509,0.04952662,129.86,129.84,0.05828609]
[1765424293115,6.97902662,129.86,129.84,0.05828609]
[1765424294107,0.04952662,129.86,129.84,3.22828609]
[1765424295825,0.04952662,129.86,129.84,0.05828609]
[1765424296023,0.04952662,129.86,129.84,3.22828609]
[1765424298316,6.9266,129.91,129.84,3.22828609]
[1765424299326,0.05194787,129.89,129.84,3.22828609]
[1765424299526,0.05194787,129.89,129.84,10.15828609]
[1765424299817,0.05194787,129.89,129.85,3.17]
[1765424301715,0.05194787,129.89,129.84,0.05828609]
[1765424301915,0.05194787,129.89,129.84,3.22828609]
[1765424303224,0.05194787,129.89,129.84,0.05828609]
[1765424303520,107.81844787,129.89,129.84,0.05828609]
[1765424303719,6.9289,129.87,129.84,3.22828609]
[1765424304225,6.9295,129.86,129.84,0.05828609]
[1765424304527,6.98291893,129.86,129.84,0.05828609]
[1765424308319,5.87183769,129.85,129.84,0.05828609]
[1765424309332,5.88329874,129.85,129.84,0.05828609]
[1765424310434,5.88329874,129.85,129.82,3.17]
[1765424310435,20.13046943,129.85,129.79,3.17]
[1765424310728,11.41242463,129.84,129.79,3.17]
[1765424310920,5.88329874,129.83,129.79,3.17]
[1765424311125,5.88329874,129.82,129.79,3.17]
[1765424311434,5.88329874,129.81,129.79,3.17]
[1765424311630,5.88329874,129.81,129.79,0.04941563]
[1765424311631,5.90234728,129.8,129.79,0.04941563]
[1765424311832,5.90234728,129.8,129.72,3.17]
[1765424311833,11.44123579,129.8,129.72,3.17]
[1765424312025,11.44123579,129.79,129.72,3.17]
[1765424312225,5.90234728,129.78,129.72,3.17]
[1765424312422,5.90234728,129.77,129.72,3.17]
[1765424312626,5.90234728,129.76,129.72,3.17]
[1765424312836,116.5427448,129.82,129.74,3.17]
[1765424313132,11.44378787,129.81,129.74,3.17]
[1765424313433,11.44378787,129.8,129.74,3.17]
[1765424313637,11.44378787,129.79,129.74,3.17]
[1765424313936,5.95491452,129.78,129.76,3.17]
[1765424314232,5.90303742,129.77,129.76,3.22284714]
[1765424315427,5.90303742,129.77,129.76,0.05284714]
[1765424315629,107.8978,129.73,129.69,23.0025813]
[1765424315836,6.9375,129.71,129.66,3.29]
[1765424316029,5.90303742,129.7,129.66,3.29]
[1765424316231,5.90303742,129.69,129.66,3.29]
[1765424316527,5.90303742,129.68,129.66,3.34463481]
[1765424316727,0.05683258,129.69,129.66,3.34463481]
[1765424316933,5.89061196,129.68,129.66,3.34463481]
[1765424317138,0.05683258,129.69,129.66,3.34463481]
[1765424319135,0.05683258,129.69,129.67,3.29]
[1765424319733,6.9343,129.77,129.68,3.29]
[1765424320732,0.05162623,129.74,129.71,3.33887888]
[1765424326939,0.05162623,129.74,129.73,3.29]
[1765424327538,0.05162623,129.74,129.72,65.46]
[1765424327833,0.05162623,129.74,129.73,3.29]
[1765424332049,6.9332,129.79,129.73,3.29]
[1765424332439,6.9327,129.8,129.73,3.29]
[1765424332943,0.05878266,129.78,129.75,0.05912589]
[1765424333145,0.05878266,129.78,129.76,3.29]
[1765424339151,0.05878266,129.78,129.75,3.34912589]
[1765424340358,0.05878266,129.78,129.75,0.05912589]
[1765424340562,107.91898266,129.78,129.75,0.05912589]
[1765424341059,6.9343,129.77,129.75,0.05912589]
[1765424341753,6.9356,129.74,129.69,3.29]
[1765424342962,0.05064856,129.73,129.71,3.29]
[1765424343270,107.95134856,129.73,129.7,0.0588984]
[1765424344869,6.937,129.72,129.7,0.0588984]
[1765424348878,6.937,129.72,129.7,3.3288984]
[1765424349774,6.937,129.72,129.7,0.0588984]
[1765424366391,6.937,129.72,129.7,3.4988984]
[1765424367987,6.937,129.72,129.7,0.0588984]
[1765424370694,0.05064856,129.73,129.7,3.4988984]
[1765424371392,6.98694856,129.73,129.7,3.4988984]
[1765424371598,0.05064856,129.73,129.7,3.4988984]
[1765424373793,6.98704856,129.73,129.7,3.4988984]
[1765424374800,8.99487707,129.73,129.7,3.4988984]
[1765424375895,8.99487707,129.73,129.7,0.0588984]
[1765424377003,2.00782851,129.71,129.7,0.0588984]
[1765424377497,2.05847707,129.73,129.7,3.3588984]
[1765424378793,0.05064856,129.73,129.7,3.3588984]
[1765424382202,0.05064856,129.73,129.7,10.2965984]
[1765424382405,6.9339,129.78,129.71,3.3]
[1765424382609,6.9339,129.78,129.73,3.3]
[1765424383201,12.21928071,129.8,129.73,3.3]
[1765424383509,0.05899012,129.78,129.75,3.35660024]
[1765424384911,6.9332,129.79,129.75,3.35660024]
[1765424385905,6.9332,129.79,129.75,0.05660024]
[1765424385906,6.98599148,129.78,129.75,0.05660024]
[1765424386207,6.98599148,129.78,129.75,3.35660024]
[1765424388606,0.05229148,129.78,129.75,3.35660024]
[1765424389713,0.05229148,129.78,129.75,10.29150024]
[1765424389907,0.05229148,129.78,129.76,3.3]
[1765424390104,6.9318,129.82,129.76,3.3]
[1765424391311,0.02157915,129.8,129.78,3.34869947]
[1765424395508,0.02157915,129.8,129.78,0.04869947]
[1765424396710,0.02157915,129.8,129.78,3.34869947]
[1765424399019,5.59758726,129.8,129.78,0.04869947]
[1765424399422,12.53018726,129.8,129.78,0.04869947]
[1765424399921,113.43768726,129.8,129.75,3.3]
[1765424400307,6.9338,129.78,129.75,3.3]
[1765424400723,8.9400771,129.78,129.75,3.3]
[1765424400921,8.9400771,129.78,129.75,3.35859881]
[1765424401121,2.0062771,129.78,129.75,3.35859881]
[1765424402217,2.0062771,129.76,129.75,3.35859881]
[1765424404515,2.0062771,129.76,129.75,0.05859881]
[1765424406321,0.0497194,129.77,129.75,3.39859881]
[1765424411328,2.0062771,129.76,129.75,0.05859881]
[1765424411827,2.0062771,129.76,129.7,65.46]
[1765424411828,2.0062771,129.76,129.7,68.71]
[1765424412028,2.0062771,129.72,129.7,68.71]
[1765424412227,2.0062771,129.73,129.71,3.25]
[1765424412711,2.0617124,129.73,129.71,3.25]
[1765424412918,2.0617124,129.73,129.71,3.30651031]
[1765424414629,2.0617124,129.73,129.71,0.05651031]
[1765424414830,111.09388437,129.73,129.68,3.25]
[1765424415020,3.13764907,129.69,129.62,3.25]
[1765424415224,3.13764907,129.67,129.62,3.25]
[1765424415922,0.05506863,129.66,129.64,3.25]
[1765424417638,0.05506863,129.66,129.63,0.04945014]
[1765424417823,0.05506863,129.66,129.63,3.29945014]
[1765424419523,3.13764907,129.65,129.63,0.04945014]
[1765424421338,10.07844907,129.65,129.63,0.04945014]
[1765424421837,6.9415,129.64,129.58,68.73]
[1765424422134,3.13764907,129.63,129.59,3.25]
[1765424422725,0.05123502,129.62,129.6,0.05519112]
[1765424423733,108.04073502,129.62,129.6,0.05519112]
[1765424424435,108.04073502,129.62,129.56,3.25]
[1765424424634,0.05123502,129.62,129.56,3.25]
[1765424425427,0.05123502,129.62,129.58,3.30785312]
[1765424425629,0.05404045,129.61,129.58,3.30785312]
[1765424426034,0.05404045,129.61,129.58,0.05785312]
[1765424426338,108.0051,129.6,129.58,0.05785312]
[1765424426634,6.9445,129.58,129.52,33.53]
[1765424427431,6.9434,129.6,129.53,3.25]
[1765424427638,6.9434,129.6,129.52,37.2274]
[1765424427639,0.04964304,129.56,129.55,3.25]
[1765424427931,0.05394718,129.57,129.55,3.25]
[1765424429032,107.9436,129.68,129.55,3.25]
[1765424429243,107.9643,129.65,129.55,3.25]
[1765424429632,107.9718,129.64,129.55,3.25]
[1765424429824,107.9643,129.65,129.55,3.25]
[1765424429825,6.9418,129.63,129.56,3.25]
[1765424430029,0.04954299,129.61,129.59,3.25]
[1765424430239,0.05341438,129.61,129.59,3.30741132]
[1765424430627,8.75422478,129.67,129.59,3.30741132]
[1765424430835,173.5036,129.68,129.59,3.25]
[1765424431138,107.9436,129.68,129.59,3.25]
[1765424431934,0.05443965,129.65,129.62,3.29974601]
[1765424432138,0.05443965,129.65,129.62,3.30005363]
[1765424434829,6.9385,129.69,129.62,3.30005363]
[1765424435033,116.65772478,129.73,129.64,3.2]
[1765424435034,8.75422478,129.73,129.64,3.2]
[1765424435239,8.75422478,129.73,129.66,3.2]
[1765424435628,107.9065,129.72,129.66,3.2]
[1765424435834,0.05656325,129.7,129.68,0.05212648]
[1765424436035,0.05656325,129.7,129.68,3.25212648]
[1765424437041,0.05656325,129.7,129.63,65.52]
[1765424437042,107.97956325,129.7,129.63,65.52]
[1765424437242,107.9314,129.69,129.63,65.52]
[1765424437637,107.9577,129.66,129.58,3.2]
[1765424438144,6.9413,129.64,129.58,3.2]
[1765424438338,0.0529224,129.62,129.6,3.25387177]
[1765424438733,0.0529224,129.62,129.6,0.05387177]
[1765424439138,0.0529224,129.62,129.6,3.25387177]
[1765424441535,173.4934,129.69,129.6,3.25387177]
[1765424441536,6.9396,129.67,129.6,3.25387177]
[1765424441740,6.9396,129.67,129.6,3.2]
[1765424442650,0.05023572,129.65,129.63,3.2]
[1765424444152,107.9283,129.7,129.63,3.2]
[1765424444941,6.9391,129.68,129.63,3.2]
[1765424445141,0.05534731,129.67,129.64,3.25594664]
[1765424451057,6.99494731,129.67,129.64,3.25594664]
[1765424451260,0.05534731,129.67,129.64,0.05594664]
[1765424451458,107.9552,129.66,129.61,3.2]
[1765424452252,6.9406,129.65,129.61,3.2]
[1765424452456,0.05442932,129.64,129.62,3.25084428]
[1765424454053,6.99562932,129.64,129.62,0.05084428]
[1765424455460,6.9423,129.62,129.55,3.2]
[1765424455755,6.9423,129.62,129.56,3.2]
[1765424456557,0.0583484,129.6,129.58,3.25899339]
[1765424466360,108.0669484,129.6,129.5,3.15]
[1765424466566,108.0225,129.58,129.5,3.15]
[1765424467067,108.0172,129.59,129.5,3.15]
[1765424467363,0.05491467,129.56,129.53,0.05854615]
[1765424467666,0.05491467,129.56,129.54,3.15]
[1765424470360,14.60901271,129.63,129.54,3.15]
[1765424470563,6.9428,129.61,129.55,3.15]
[1765424471573,0.05325593,129.59,129.58,3.38]
[1765424474664,0.05325593,129.59,129.57,0.0569252]
[1765424475074,0.05325593,129.59,129.54,3.38]
[1765424475963,6.9449,129.57,129.54,3.38]
[1765424476169,6.9449,129.57,129.54,3.43188246]
[1765424476369,0.05325593,129.59,129.54,3.43188246]
[1765424477573,6.9445,129.58,129.54,3.43188246]
[1765424478375,6.9449,129.57,129.54,3.43188246]
[1765424479175,6.99735593,129.59,129.54,3.43188246]
[1765424480174,6.9443,129.58,129.54,3.43188246]
[1765424481071,6.9452,129.57,129.54,3.43188246]
[1765424482971,6.99725593,129.59,129.54,3.43188246]
[1765424483168,0.05325593,129.59,129.54,3.43188246]
[1765424484177,6.99705593,129.59,129.54,3.43188246]
[1765424484578,0.05325593,129.59,129.54,3.43188246]
[1765424484878,2.01253224,129.57,129.54,3.43188246]
[1765424486185,2.01253224,129.55,129.54,3.43188246]
[1765424486776,0.05252062,129.56,129.54,3.43188246]
[1765424493386,108.09902062,129.56,129.5,3.38]
[1765424493586,108.0479,129.55,129.5,3.38]
[1765424494382,108.0479,129.55,129.51,0.05482307]
[1765424494593,6.9471,129.53,129.51,0.05482307]
[1765424494792,7.00586042,129.53,129.51,0.05482307]
[1765424494991,108.0891,129.5,129.46,3.27]
[1765424495783,5.59118902,129.51,129.46,3.27]
[1765424495996,0.05426548,129.5,129.47,3.32164111]
[1765424496182,0.0538096,129.5,129.47,3.32164111]
[1765424496385,5.59118902,129.49,129.47,0.05164111]
[1765424496589,108.1309,129.45,129.41,3.27]
[1765424496797,113.71358902,129.46,129.41,3.27]
[1765424497301,5.59118902,129.46,129.41,3.27]
[1765424497598,0.05518358,129.45,129.42,0.04887867]
[1765424497798,0.05518358,129.45,129.42,3.31887867]
[1765424502100,0.05518358,129.45,129.42,68.91887867]
[1765424502300,5.59118902,129.52,129.43,3.27]
[1765424502702,12.53888902,129.52,129.44,3.27]
[1765424503298,0.0581927,129.49,129.47,3.32258988]
[1765424504710,6.9496,129.48,129.47,0.05258988]
[1765424507911,6.9512,129.45,129.41,3.27]
[1765424508710,6.9504,129.47,129.41,3.27]
[1765424509013,0.05630315,129.45,129.43,3.3205842]
[1765424513716,6.9498,129.48,129.43,3.3205842]
[1765424514618,0.05048377,129.47,129.43,3.3205842]
[1765424524722,2.06605486,129.47,129.43,3.3205842]
[1765424525729,9.01625486,129.47,129.43,3.3205842]
[1765424526034,2.01557109,129.45,129.43,3.3205842]
[1765424527231,6.9509,129.46,129.43,3.3205842]
[1765424527430,2.06605486,129.47,129.43,3.3205842]
[1765424528937,6.9508,129.46,129.43,3.3205842]
[1765424531329,8.96637109,129.46,129.43,3.3205842]
[1765424533242,0.05048377,129.47,129.43,3.3205842]
[1765424533425,2.01557109,129.46,129.43,3.3205842]
[1765424536637,10.15066246,129.47,129.43,3.3205842]
[1765424537536,3.14977869,129.45,129.43,0.0505842]
[1765424538638,10.10107869,129.45,129.43,0.0505842]
[1765424540841,108.1485,129.43,129.38,3.45]
[1765424541034,108.1485,129.43,129.34,4.48017808]
[1765424541035,111.33407869,129.39,129.34,4.48017808]
[1765424541234,111.33407869,129.39,129.34,7.93017808]
[1765424541235,3.14977869,129.36,129.34,7.93017808]
[1765424541636,3.14977869,129.38,129.34,7.93017808]
[1765424541938,0.05737474,129.37,129.35,3.50849932]
[1765424543943,0.05737474,129.37,129.35,0.05849932]
[1765424544247,0.05737474,129.37,129.35,3.50849932]
[1765424545441,3.14977869,129.36,129.35,0.05849932]
[1765424546448,3.14977869,129.36,129.34,4.48017808]
[1765424546449,10.10607869,129.36,129.34,1.03106452]
[1765424546741,3.14977869,129.36,129.34,0.53426412]
[1765424547149,0.05737474,129.37,129.34,3.98426412]
[1765424547548,0.05737474,129.37,129.34,4.03719498]
[1765424549751,3.14977869,129.36,129.34,0.58719498]
[1765424550840,118.31177869,129.36,129.34,0.58719498]
[1765424551045,118.31177869,129.36,129.34,9.498e-05]
[1765424552354,121.46155738,129.36,129.34,9.498e-05]
[1765424552543,187.16155738,129.36,129.34,9.498e-05]
[1765424553248,184.01177869,129.36,129.34,9.498e-05]
[1765424553756,6.9586,129.32,129.29,3.45]
[1765424553939,3.14977869,129.31,129.29,3.45]
[1765424554338,6.9586,129.32,129.29,3.45]
[1765424554545,10.10837869,129.32,129.26,3.27]
[1765424554753,0.05479147,129.3,129.29,3.27]
[1765424555251,10.10717869,129.34,129.29,3.27]
[1765424555938,304.1146,129.36,129.29,3.27]
[1765424555939,10.10607869,129.36,129.29,3.27]
[1765424556152,0.05793803,129.34,129.32,3.27]
[1765424556349,3.14977869,129.38,129.32,3.27]
[1765424556845,10.10497869,129.38,129.32,3.27]
[1765424557452,0.05054758,129.36,129.35,3.27]
[1765424558346,3.20032627,129.36,129.34,0.05522505]
[1765424558546,111.40632627,129.36,129.34,0.05522505]
[1765424558750,118.36262627,129.36,129.34,0.05522505]
[1765424558946,121.51240496,129.36,129.34,0.05522505]
[1765424559654,118.36262627,129.36,129.34,0.05522505]
[1765424560152,184.08262627,129.36,129.34,0.05522505]
[1765424560946,187.23240496,129.36,129.34,0.05522505]
[1765424561953,184.08262627,129.36,129.34,0.05522505]
[1765424563749,184.08262627,129.36,129.34,3.32522505]
[1765424564254,184.08262627,129.36,129.34,0.05522505]
[1765424565057,118.36262627,129.36,129.34,0.05522505]
[1765424565253,0.05054758,129.36,129.34,3.32522505]
[1765424566857,7.00674758,129.36,129.34,3.32522505]
[1765424572852,3.14977869,129.35,129.34,0.05522505]
[1765424573566,3.14977869,129.35,129.3,3.27]
[1765424573749,3.14977869,129.33,129.3,3.27]
[1765424574561,3.20628495,129.33,129.3,3.31904341]
[1765424574860,10.16408495,129.33,129.3,3.31904341]
[1765424575663,7.01430626,129.33,129.3,3.31904341]
[1765424577757,10.16408495,129.33,129.3,3.31904341]
[1765424580263,3.14977869,129.31,129.3,0.04904341]
[1765424581164,3.14977869,129.31,129.3,3.31904341]
[1765424581662,3.14977869,129.31,129.15,3.27]
[1765424581663,108.3076,129.24,129.15,3.27]
[1765424581862,3.14977869,129.22,129.15,3.27]
[1765424582264,3.14977869,129.22,129.16,3.27]
[1765424582462,0.05113654,129.2,129.19,3.27]
[1765424582664,3.14977869,129.24,129.19,3.27]
[1765424583073,0.05936581,129.23,129.21,3.27]
[1765424585564,3.14977869,129.27,129.21,4.81]
[1765424585870,3.14977869,129.27,129.22,3.25]
[1765424586372,6.9599,129.29,129.22,3.25]
[1765424586373,10.10967869,129.29,129.22,3.25]
[1765424586673,3.20751091,129.27,129.24,3.30825618]
[1765424587469,10.16861091,129.27,129.24,3.30825618]
[1765424587771,3.14977869,129.25,129.24,0.05825618]
[1765424595071,108.3173,129.23,129.18,65.68]
[1765424595267,3.14977869,129.2,129.18,65.68]
[1765424595672,3.14977869,129.2,129.18,68.99]
[1765424596074,3.20570096,129.2,129.18,69.04567013]
[1765424596275,3.20570096,129.2,129.18,0.05567013]
[1765424596470,3.20570096,129.2,129.07,95.90977869]
[1765424596471,108.3575,129.18,129.1,3.31]
[1765424596666,3.14977869,129.16,129.1,3.31]
[1765424597174,3.14977869,129.2,129.13,3.31]
[1765424597567,0.05728491,129.18,129.16,3.31]
[1765424598673,2.08181862,129.18,129.16,3.31]
[1765424599567,2.08181862,129.18,129.15,0.05550733]
[1765424599768,2.02453371,129.16,129.15,0.05550733]
[1765424601175,1.54,129.16,129.15,0.05550733]
[1765424601480,0.05728491,129.18,129.16,3.31]
[1765424601670,2.08181862,129.18,129.16,3.31]
[1765424602071,2.08181862,129.18,129.15,3.36550733]
[1765424602770,0.05728491,129.18,129.15,3.36550733]
[1765424603269,2.02453371,129.23,129.16,5.33453371]
[1765424603467,2.02453371,129.23,129.17,3.31]
[1765424603871,2.02453371,129.21,129.17,3.31]
[1765424604073,108.3002,129.25,129.17,3.31]
[1765424604074,108.3101,129.24,129.17,3.31]
[1765424604266,2.02453371,129.2,129.19,0.05737801]
[1765424604468,0.04885017,129.22,129.19,0.05737801]
[1765424604670,2.02453371,129.2,129.19,0.05737801]
[1765424609789,2.02453371,129.2,129.13,65.72]
[1765424609790,108.3515,129.19,129.13,65.72]
[1765424609977,108.3266,129.22,129.14,3.31]
[1765424610177,2.02453371,129.19,129.14,3.31]
[1765424610884,0.05758337,129.18,129.16,3.31]
[1765424611073,0.05758337,129.18,129.16,3.36759005]
[1765424615686,0.05758337,129.18,129.16,0.05759005]
[1765424615887,2.08211708,129.18,129.16,0.05759005]
[1765424616797,9.04801708,129.18,129.16,0.05759005]
[1765424619689,9.04801708,129.18,129.16,3.22759005]
[1765424620088,2.08211708,129.18,129.16,3.22759005]
[1765424624300,2.02453371,129.23,129.17,3.17]
[1765424624604,2.02453371,129.21,129.17,3.17]
[1765424625304,0.05281117,129.2,129.19,3.17]
[1765424626106,0.05281117,129.2,129.18,0.04965231]
[1765424626107,7.01761117,129.2,129.18,0.04965231]
[1765424626294,2.02453371,129.19,129.18,0.04965231]
[1765424629103,6.9663,129.17,129.13,3.17]
[1765424629303,2.02453371,129.16,129.13,3.17]
[1765424630203,2.07614497,129.16,129.13,3.22852155]
[1765424631507,2.07614497,129.16,129.13,0.05852155]
[1765424631710,2.07614497,129.16,129.13,3.22852155]
[1765424632102,9.04314497,129.16,129.13,0.05852155]
[1765424632714,6.9675,129.15,129.13,0.05852155]
[1765424633104,2.02453371,129.14,129.13,0.05852155]
[1765424638315,108.4097,129.12,129.06,3.17]
[1765424638507,2.02453371,129.09,129.06,3.17]
[1765424639218,2.07687812,129.09,129.06,3.21975541]
[1765424640019,9.04767812,129.09,129.06,3.21975541]
[1765424640723,108.4826,129.03,128.98,4.52535564]
[1765424640923,2.02453371,128.99,128.98,4.52535564]
[1765424641118,108.4744,129.04,128.98,4.52535564]
[1765424641321,2.02453371,129.04,128.99,3.17]
[1765424641620,174.2588,129.09,129.01,3.17]
[1765424641621,8.99553371,129.09,129.01,3.17]
[1765424642019,108.401,129.13,129.01,3.17]
[1765424642020,108.3693,129.17,129.09,3.17]
[1765424642321,2.02453371,129.15,129.09,3.17]
[1765424642522,2.02453371,129.23,129.14,3.17]
[1765424642711,0.05755503,129.2,129.18,3.17]
[1765424642912,108.245,129.32,129.18,3.22814833]
[1765424643126,108.245,129.32,129.21,3.17]
[1765424643317,6.9586,129.32,129.22,3.17]
[1765424643510,108.2121,129.36,129.22,3.17]
[1765424643511,108.1934,129.38,129.27,3.17]
[1765424643819,108.1934,129.38,129.28,3.17]
[1765424643820,119.62842715,129.37,129.28,3.17]
[1765424644014,108.174,129.4,129.32,3.17]
[1765424644015,0.05623328,129.34,129.32,3.17]
[1765424644215,0.05099518,129.34,129.32,3.22904922]
[1765424645215,108.27659518,129.34,129.28,3.36]
[1765424645928,0.05099518,129.34,129.28,3.36]
[1765424646424,0.05099518,129.34,129.31,3.36]
[1765424646628,0.0514407,129.34,129.31,3.36]
[1765424649827,1.34536949,129.4,129.31,3.36]
[1765424650125,113.76035903,129.44,129.35,3.36]
[1765424650318,108.1495,129.43,129.35,3.36]
[1765424650518,5.61915903,129.41,129.35,3.36]
[1765424650725,0.05453173,129.39,129.37,0.05935773]
[1765424650928,0.05453173,129.39,129.32,3.29]
[1765424650929,5.61915903,129.38,129.32,3.29]
[1765424652035,5.61915903,129.38,129.28,65.74]
[1765424652036,0.05941197,129.36,129.34,3.34192321]
[1765424664038,123.88745077,129.43,129.34,3.34192321]
[1765424664239,123.88745077,129.43,129.34,3.29]
[1765424664436,175.20957952,129.44,129.35,118.455]
[1765424664437,1.34497952,129.44,129.35,118.455]
[1765424664642,15.73605077,129.46,129.36,3.29]
[1765424665230,0.05030283,129.42,129.4,3.34831995]
[1765424668642,116.84625077,129.54,129.43,3.29]
[1765424669137,17.07564335,129.54,129.45,3.29]
[1765424669330,116.84155077,129.54,129.48,3.29]
[1765424669540,0.05825429,129.52,129.5,3.34130557]
[1765424669740,0.04949258,129.52,129.5,3.34603896]
[1765424670442,0.04949258,129.52,129.5,0.05603896]
[1765424671347,8.78505077,129.51,129.44,3.29]
[1765424671942,15.73145077,129.54,129.44,3.29]
[1765424672241,0.05300682,129.5,129.48,0.0517542]
[1765424673242,0.05300682,129.5,129.48,3.3417542]
[1765424674635,8.78505077,129.57,129.49,3.17]
[1765424674838,108.0392,129.56,129.49,3.17]
[1765424675040,8.78505077,129.54,129.49,3.17]
[1765424675642,8.78505077,129.54,129.45,108.1273]
[1765424675643,0.05700298,129.53,129.5,3.22337709]
[1765424683135,6.9455,129.56,129.5,3.22337709]
[1765424683335,6.9445,129.58,129.5,3.22337709]
[1765424683538,6.9445,129.58,129.5,3.17]
[1765424683946,8.78505077,129.59,129.5,3.17]
[1765424684346,0.04940448,129.56,129.54,3.17]
[1765424684851,15.72725077,129.62,129.54,3.17]
[1765424685853,0.05184577,129.59,129.58,3.17]
[1765424686946,0.05184577,129.59,129.57,0.05030167]
[1765424687446,0.05184577,129.59,129.57,3.22030167]
[1765424688850,0.05184577,129.59,129.57,0.05030167]
[1765424689050,5.86597363,129.58,129.57,0.05030167]
[1765424689248,0.05184577,129.59,129.57,0.05030167]
[1765424690044,0.05184577,129.59,129.57,3.22030167]
[1765424690261,0.05184577,129.59,129.57,0.05030167]
[1765424690959,6.99574577,129.59,129.57,0.05030167]
[1765424691261,0.05184577,129.59,129.57,3.22030167]
[1765424691550,0.05184577,129.59,129.57,0.05030167]
[1765424694061,6.99574577,129.59,129.57,0.05030167]
[1765424694754,108.0343,129.57,129.51,3.17]
[1765424694962,8.78505077,129.54,129.47,3.17]
[1765424695849,0.0531221,129.52,129.49,0.05011892]
[1765424699052,0.0531221,129.52,129.49,3.22011892]
[1765424701055,0.0531221,129.52,129.49,0.05011892]
[1765424701955,0.0531221,129.52,129.49,3.22011892]
[1765424702665,0.0531221,129.52,129.49,0.05011892]
[1765424702968,0.0531221,129.52,129.43,3.17]